fUST/lending_fUST_20251001
["ID","MTS","AMOUNT","RATE_DAILY","PERIOD"]
[388663333,1759311041288,-500.0,0.00019267,2]
[388663335,1759311041297,-500.0,0.00019267,2]
[388663337,1759311041306,-746.86,0.00019267,2]
[388663339,1759311041316,-467.59379288,0.00019267,2]
[388663341,1759311041325,-467.83126422,0.00019267,2]
[388663343,1759311041335,-500.0,0.00019267,2]
[388663344,1759311041344,-500.0,0.00019267,2]
[388663346,1759311041353,-500.0,0.00019267,2]
[388663348,1759311041365,-500.0,0.00019267,2]
[388663350,1759311041375,-500.0,0.00019267,2]
[388663352,1759311041389,-500.0,0.00019267,2]
[388663354,1759311041399,-445.7533544,0.00019267,2]
[388663355,1759311041407,-500.0,0.00019267,2]
[388663356,1759311041417,-500.0,0.00019267,2]
[388663357,1759311041426,-500.0,0.00019267,2]
[388663358,1759311041435,-500.0,0.00019267,2]
[388663359,1759311041443,-861.96,0.00019267,2]
[388663360,1759311041452,-500.0,0.00019267,2]
[388663361,1759311041461,-500.0,0.00019267,2]
[388663362,1759311041469,-481.83228989,0.00019267,2]
[388663363,1759311041478,-482.84947016,0.00019267,2]
[388663364,1759311041487,-500.0,0.00019267,2]
[388663365,1759311041495,-500.0,0.00019267,2]
[388663366,1759311041504,-973.72,0.00019267,2]
[388663367,1759311041513,-647.97,0.00019267,2]
[388663368,1759311041522,-500.0,0.00019267,2]
[388663369,1759311041530,-500.0,0.00019267,2]
[388663370,1759311041540,-500.0,0.00019267,2]
[388663371,1759311041549,-500.0,0.00019267,2]
[388663372,1759311041558,-619.36,0.00019267,2]
[388663373,1759311041567,-500.0,0.00019267,2]
[388663374,1759311041577,-603.3,0.00019267,2]
[388663375,1759311041592,-500.0,0.00019267,2]
[388663376,1759311041602,-1087.58,0.00019267,2]
[388663377,1759311041611,-2927.19,0.00019267,2]
[388663378,1759311041622,-500.0,0.00019267,2]
[388663379,1759311041631,-500.0,0.00019267,2]
[388663380,1759311041639,-640.23146803,0.00019267,2]
[388663381,1759311041648,-500.0,0.00019267,2]
[388663382,1759311041656,-500.0,0.00019267,2]
[388663383,1759311041665,-500.0,0.00019267,2]
[388663384,1759311041674,-500.0,0.00019267,2]
[388663385,1759311041683,-500.0,0.00019267,2]
[388663386,1759311041692,-500.0,0.00019267,2]
[388663387,1759311041701,-3460.01,0.00019267,2]
[388663388,1759311041710,-500.0,0.00019267,2]
[388663389,1759311041719,-500.0,0.00019267,2]
[388663390,1759311041729,-846.03,0.00019267,2]
[388663391,1759311041738,-518.11,0.00019267,2]
[388663392,1759311041746,-1290.06,0.00019267,2]
[388663393,1759311041755,-500.0,0.00019267,2]
[388663394,1759311041764,-500.0,0.00019267,2]
[388663395,1759311041772,-669.89,0.00019267,2]
[388663396,1759311041781,-500.0,0.00019267,2]
[388663398,1759311041792,-500.0,0.00019267,2]
[388663400,1759311041807,-500.0,0.00019267,2]
[388663402,1759311041816,-1294.55,0.00019267,2]
[388663404,1759311041824,-424.82415666,0.00019267,2]
[388663406,1759311041834,-150.0,0.00019268,2]
[388663408,1759311041844,-300.0,0.00019268,2]
[388663410,1759311041853,-450.0,0.00019268,2]
[388663412,1759311041862,-600.0,0.00019268,2]
[388663414,1759311041870,-541.81976818,0.00019268,2]
[388663416,1759311041879,-515.63066607,0.00019273,2]
[388663418,1759311041888,-500.0,0.00019273,2]
[388663420,1759311041897,-500.0,0.00019273,2]
[388663422,1759311041906,-500.0,0.00019273,2]
[388663424,1759311041915,-500.0,0.00019273,2]
[388663426,1759311041924,-500.0,0.00019273,2]
[388663428,1759311041933,-500.0,0.00019273,2]
[388663430,1759311041942,-500.0,0.00019273,2]
[388663432,1759311041951,-500.0,0.00019273,2]
[388663434,1759311041960,-503.21058416,0.00019273,2]
[388663435,1759311041970,-503.13573806,0.00019273,2]
[388663437,1759311041979,-500.0,0.00019273,2]
[388663440,1759311041989,-500.0,0.00019273,2]
[388663441,1759311041999,-500.0,0.00019273,2]
[388663443,1759311042008,-500.0,0.00019273,2]
[388663445,1759311042017,-500.0,0.00019273,2]
[388663447,1759311042026,-500.0,0.00019273,2]
[388663449,1759311042034,-500.0,0.00019273,2]
[388663451,1759311042044,-500.0,0.00019273,2]
[388663453,1759311042053,-500.0,0.00019273,2]
[388663455,1759311042063,-500.0,0.00019273,2]
[388663457,1759311042072,-604.38694824,0.00019291,2]
[388663459,1759311042081,-150.0,0.00019314,2]
[388663461,1759311042091,-164.0,0.00019314,2]
[388663463,1759311042100,-1000.0,0.00019369,2]
[388663465,1759311042109,-1000.0,0.00019369,2]
[388663467,1759311042118,-1000.0,0.00019369,2]
[388663469,1759311042127,-1000.0,0.00019369,2]
[388663471,1759311042136,-1000.0,0.00019369,2]
[388663473,1759311042145,-1000.0,0.00019371,2]
[388663475,1759311042154,-1000.0,0.00019371,2]
[388663477,1759311042163,-1000.0,0.00019371,2]
[388663479,1759311042172,-1000.0,0.00019372,2]
[388663481,1759311042182,-1000.0,0.00019381,2]
[388663483,1759311042192,-1000.0,0.00019381,2]
[388663485,1759311042201,-1000.0,0.00019381,2]
[388663487,1759311042210,-1000.0,0.00019383,2]
[388663489,1759311042219,-1000.0,0.00019383,2]
[388663491,1759311042229,-1000.0,0.00019383,2]
[388663493,1759311042239,-1000.0,0.00019383,2]
[388663495,1759311042250,-1000.0,0.00019383,2]
[388663497,1759311042261,-1000.0,0.00019383,2]
[388663499,1759311042272,-1000.0,0.00019383,2]
[388663501,1759311042284,-928.7,0.00019383,2]
[388663503,1759311042301,-604.38694824,0.00019429,2]
[388663505,1759311042310,-400.08268891,0.000195,2]
[388663507,1759311042319,-500.0,0.00019524,2]
[388663509,1759311042329,-748.43,0.00019524,2]
[388663511,1759311042339,-719.76,0.00019524,2]
[388663513,1759311042348,-1337.72,0.00019524,2]
[388663515,1759311042357,-500.0,0.00019524,2]
[388663517,1759311042367,-5162.18,0.00019524,2]
[388663519,1759311042377,-500.0,0.00019524,2]
[388663521,1759311042386,-500.0,0.00019525,2]
[388663523,1759311042396,-2144.64,0.00019525,2]
[388663525,1759311042406,-4221.18,0.00019525,2]
[388663527,1759311042415,-730.61,0.00019525,2]
[388663529,1759311042424,-500.0,0.00019525,2]
[388663531,1759311042437,-500.0,0.00019525,2]
[388663533,1759311042446,-500.0,0.00019525,2]
[388663535,1759311042455,-1060.99,0.00019525,2]
[388663537,1759311042464,-756.72,0.00019525,2]
[388663539,1759311042473,-2167.06,0.00019525,2]
[388663541,1759311042483,-585.91,0.00019525,2]
[388663543,1759311042492,-1432.31,0.00019525,2]
[388663545,1759311042501,-2334.58,0.00019525,2]
[388663547,1759311042510,-500.0,0.00019525,2]
[388663549,1759311042519,-2034.87,0.00019525,2]
[388663551,1759311042528,-1676.67,0.00019525,2]
[388663552,1759311042539,-2074.96,0.00019525,2]
[388663554,1759311042549,-776.28,0.00019525,2]
[388663556,1759311042558,-956.69,0.00019525,2]
[388663558,1759311042567,-699.67,0.00019525,2]
[388663560,1759311042577,-1773.17,0.00019525,2]
[388663562,1759311042586,-993.59,0.00019525,2]
[388663564,1759311042596,-551.31,0.00019525,2]
[388663566,1759311042606,-829.34,0.00019525,2]
[388663568,1759311042616,-4004.17,0.00019525,2]
[388663571,1759311042626,-500.0,0.00019525,2]
[388663572,1759311042636,-500.0,0.00019525,2]
[388663574,1759311042645,-500.0,0.00019525,2]
[388663576,1759311042654,-584.27717821,0.00019525,2]
[388663578,1759311042663,-2779.6,0.00019525,2]
[388663580,1759311042672,-753.45,0.00019525,2]
[388663582,1759311042681,-500.0,0.00019526,2]
[388663584,1759311042690,-500.0,0.00019526,2]
[388663586,1759311042700,-500.0,0.00019526,2]
[388663588,1759311042709,-500.0,0.00019526,2]
[388663590,1759311042718,-1845.4,0.00019526,2]
[388663592,1759311042727,-1043.49,0.00019526,2]
[388663594,1759311042737,-546.09523425,0.00019526,2]
[388663596,1759311042747,-500.0,0.00019526,2]
[388663598,1759311042756,-515.63,0.00019526,2]
[388663600,1759311042765,-500.0,0.00019526,2]
[388663602,1759311042773,-500.0,0.00019526,2]
[388663604,1759311042782,-1547.93,0.00019526,2]
[388663606,1759311042793,-1573.14,0.00019526,2]
[388663608,1759311042802,-500.0,0.00019526,2]
[388663610,1759311042811,-784.62,0.00019526,2]
[388663612,1759311042820,-500.0,0.00019526,2]
[388663615,1759311042828,-1774.17,0.00019526,2]
[388663617,1759311042838,-973.98,0.00019526,2]
[388663619,1759311042847,-603.26,0.00019526,2]
[388663621,1759311042856,-500.0,0.00019526,2]
[388663623,1759311042865,-500.0,0.00019526,2]
[388663625,1759311042874,-787.42,0.00019526,2]
[388663628,1759311042883,-826.98,0.00019526,2]
[388663630,1759311042892,-500.0,0.00019526,2]
[388663632,1759311042901,-2564.47,0.00019526,2]
[388663634,1759311042910,-500.0,0.00019526,2]
[388663636,1759311042919,-3795.02,0.00019526,2]
[388663638,1759311042928,-1630.61,0.00019526,2]
[388663640,1759311042937,-920.33,0.00019526,2]
[388663641,1759311042946,-1500.29,0.00019526,2]
[388663643,1759311042955,-500.0,0.00019526,2]
[388663646,1759311042964,-774.14,0.00019526,2]
[388663649,1759311042973,-500.0,0.00019526,2]
[388663651,1759311042982,-500.0,0.00019526,2]
[388663653,1759311042991,-845.69,0.00019526,2]
[388663655,1759311043000,-500.0,0.00019526,2]
[388663657,1759311043009,-500.0,0.00019526,2]
[388663659,1759311043018,-500.0,0.00019526,2]
[388663661,1759311043027,-2040.66,0.00019526,2]
[388663663,1759311043038,-1462.1,0.00019526,2]
[388663665,1759311043047,-1088.12,0.00019526,2]
[388663667,1759311043056,-1345.86,0.00019526,2]
[388663669,1759311043064,-598.67,0.00019526,2]
[388663671,1759311043074,-1335.97,0.00019526,2]
[388663672,1759311043084,-500.0,0.00019526,2]
[388663674,1759311043093,-500.0,0.00019526,2]
[388663676,1759311043103,-500.0,0.00019526,2]
[388663678,1759311043113,-500.0,0.00019526,2]
[388663680,1759311043122,-2864.52,0.00019526,2]
[388663682,1759311043131,-510.23,0.00019526,2]
[388663684,1759311043142,-1682.0,0.00019526,2]
[388663686,1759311043151,-1423.65,0.00019526,2]
[388663688,1759311043161,-1908.8,0.00019526,2]
[388663690,1759311043170,-1637.64,0.00019526,2]
[388663692,1759311043179,-1100.58,0.00019526,2]
[388663694,1759311043188,-500.0,0.00019526,2]
[388663696,1759311043197,-500.0,0.00019526,2]
[388663697,1759311043206,-953.37,0.00019526,2]
[388663698,1759311043215,-1916.2,0.00019526,2]
[388663699,1759311043225,-981.82,0.00019526,2]
[388663700,1759311043234,-618.30175817,0.00019526,2]
[388663701,1759311043244,-500.0,0.00019527,2]
[388663702,1759311043254,-500.0,0.00019527,2]
[388663703,1759311043263,-662.32,0.00019527,2]
[388663704,1759311043273,-5783.71,0.00019527,2]
[388663705,1759311043283,-1958.33,0.00019527,2]
[388663706,1759311043297,-500.0,0.00019527,2]
[388663707,1759311043310,-1996.83,0.00019527,2]
[388663708,1759311043320,-4467.24,0.00019527,2]
[388663709,1759311043331,-1641.33,0.00019527,2]
[388663710,1759311043340,-500.0,0.00019527,2]
[388663711,1759311043350,-1185.73,0.00019527,2]
[388663712,1759311043360,-4455.52,0.00019527,2]
[388663713,1759311043372,-2544.34,0.00019527,2]
[388663714,1759311043382,-500.0,0.00019528,2]
[388663715,1759311043392,-500.0,0.00019528,2]
[388663716,1759311043403,-500.0,0.00019528,2]
[388663717,1759311043413,-1071.32,0.00019528,2]
[388663718,1759311043422,-500.0,0.00019528,2]
[388663719,1759311043433,-500.0,0.00019528,2]
[388663720,1759311043443,-706.61,0.00019528,2]
[388663721,1759311043455,-500.0,0.00019528,2]
[388663722,1759311043465,-500.0,0.00019528,2]
[388663723,1759311043474,-500.0,0.00019528,2]
[388663724,1759311043484,-500.0,0.00019528,2]
[388663725,1759311043494,-500.0,0.00019528,2]
[388663726,1759311043505,-500.0,0.00019528,2]
[388663727,1759311043516,-500.0,0.00019528,2]
[388663728,1759311043525,-666.55,0.00019528,2]
[388663729,1759311043535,-500.0,0.00019528,2]
[388663730,1759311043548,-500.0,0.00019528,2]
[388663731,1759311043558,-500.0,0.00019528,2]
[388663732,1759311043572,-500.0,0.00019528,2]
[388663738,1759311043751,-500.0,0.00019528,2]
[388663739,1759311043760,-500.0,0.00019528,2]
[388663740,1759311043770,-1049.02,0.00019528,2]
[388663741,1759311043779,-658.16,0.00019528,2]
[388663742,1759311043791,-500.0,0.00019528,2]
[388663743,1759311043800,-500.0,0.00019528,2]
[388663744,1759311043810,-500.0,0.00019528,2]
[388663745,1759311043819,-500.0,0.00019528,2]
[388663746,1759311043829,-500.0,0.00019528,2]
[388663747,1759311043839,-483.31466835,0.00019528,2]
[388663748,1759311043848,-500.0,0.00019528,2]
[388663749,1759311043857,-500.0,0.00019528,2]
[388663750,1759311043867,-619.44,0.00019528,2]
[388663751,1759311043875,-500.0,0.00019528,2]
[388663752,1759311043884,-500.0,0.00019528,2]
[388663753,1759311043893,-726.87,0.00019528,2]
[388663754,1759311043903,-500.0,0.00019528,2]
[388663755,1759311043912,-903.29,0.00019528,2]
[388663756,1759311043921,-500.0,0.00019528,2]
[388663757,1759311043930,-507.48478079,0.00019528,2]
[388663758,1759311043939,-938.32,0.00019528,2]
[388663759,1759311043948,-500.0,0.00019528,2]
[388663760,1759311043958,-500.0,0.00019528,2]
[388663761,1759311043967,-421.12654648,0.00019528,2]
[388663762,1759311043976,-424.37819279,0.00019528,2]
[388663763,1759311043985,-500.0,0.00019528,2]
[388663764,1759311043994,-12265.02,0.00019528,2]
[388663765,1759311044003,-500.0,0.00019528,2]
[388663766,1759311044012,-539.47812848,0.00019528,2]
[388663767,1759311044021,-1711.63,0.00019528,2]
[388663768,1759311044030,-435.16615375,0.00019528,2]
[388663769,1759311044041,-553.56,0.00019528,2]
[388663770,1759311044051,-500.0,0.00019528,2]
[388663771,1759311044060,-500.0,0.00019528,2]
[388663772,1759311044070,-3082.04,0.00019528,2]
[388663773,1759311044079,-1000.0,0.00019528,2]
[388663774,1759311044088,-836.6,0.00019528,2]
[388663775,1759311044098,-424.03539874,0.00019528,2]
[388663777,1759311044107,-500.0,0.00019528,2]
[388663778,1759311044116,-5818.582153,0.00019528,2]
[388663780,1759311044125,-5818.582153,0.00019528,2]
[388663781,1759311044134,-5818.582153,0.00019528,2]
[388663782,1759311044144,-5818.582153,0.00019528,2]
[388663783,1759311044153,-151.0,0.00019528,2]
[388663784,1759311044163,-2197.07,0.00019528,2]
[388663785,1759311044172,-500.0,0.00019528,2]
[388663786,1759311044181,-500.0,0.00019528,2]
[388663787,1759311044190,-500.0,0.00019528,2]
[388663788,1759311044199,-454.6416581,0.00019528,2]
[388663789,1759311044209,-500.0,0.00019528,2]
[388663790,1759311044219,-3971.63,0.00019528,2]
[388663791,1759311044228,-151.0,0.00019528,2]
[388663792,1759311044238,-151.0,0.00019528,2]
[388663793,1759311044248,-151.0,0.00019528,2]
[388663794,1759311044257,-151.0,0.00019528,2]
[388663795,1759311044267,-500.0,0.00019528,2]
[388663796,1759311044276,-151.0,0.00019528,2]
[388663797,1759311044290,-500.0,0.00019529,2]
[388663798,1759311044299,-680.32,0.00019529,2]
[388663799,1759311044309,-426.76405565,0.00019529,2]
[388663800,1759311044318,-1053.11,0.00019529,2]
[388663801,1759311044327,-500.0,0.00019529,2]
[388663802,1759311044336,-500.0,0.00019529,2]
[388663803,1759311044346,-838.34,0.00019529,2]
[388663804,1759311044356,-151.0,0.00019529,2]
[388663805,1759311044365,-249.762045,0.00019529,2]
[388663806,1759311044375,-249.762045,0.00019529,2]
[388663807,1759311044384,-249.762045,0.00019529,2]
[388663808,1759311044394,-249.762045,0.00019529,2]
[388663809,1759311044403,-151.0,0.00019529,2]
[388663810,1759311044413,-169.871241,0.00019529,2]
[388663811,1759311044423,-170.503987,0.00019529,2]
[388663812,1759311044432,-151.0,0.00019529,2]
[388663813,1759311044441,-154.243573,0.00019529,2]
[388663814,1759311044450,-151.696,0.00019529,2]
[388663815,1759311044460,-696.31,0.00019529,2]
[388663816,1759311044469,-151.0,0.00019529,2]
[388663817,1759311044479,-151.0,0.00019529,2]
[388663818,1759311044489,-500.0,0.00019529,2]
[388663819,1759311044499,-500.0,0.00019529,2]
[388663820,1759311044508,-503.35,0.00019529,2]
[388663821,1759311044518,-153.114269,0.00019529,2]
[388663822,1759311044527,-500.0,0.00019529,2]
[388663823,1759311044536,-500.0,0.00019529,2]
[388663824,1759311044547,-168.066023,0.00019529,2]
[388663825,1759311044557,-151.0,0.00019529,2]
[388663826,1759311044567,-158.123531,0.00019529,2]
[388663827,1759311044577,-151.0,0.00019529,2]
[388663828,1759311044587,-163.485737,0.00019529,2]
[388663829,1759311044596,-163.485737,0.00019529,2]
[388663830,1759311044606,-163.485737,0.00019529,2]
[388663831,1759311044616,-163.485737,0.00019529,2]
[388663832,1759311044625,-151.0,0.00019529,2]
[388663833,1759311044635,-500.0,0.00019529,2]
[388663834,1759311044645,-500.0,0.0001953,2]
[388663835,1759311044654,-500.0,0.0001953,2]
[388663836,1759311044664,-500.0,0.0001953,2]
[388663837,1759311044674,-508.84,0.0001953,2]
[388663838,1759311044684,-500.0,0.0001953,2]
[388663839,1759311044693,-155.558288,0.0001953,2]
[388663840,1759311044703,-153.889899,0.0001953,2]
[388663841,1759311044712,-885.52,0.0001953,2]
[388663842,1759311044722,-1051.22,0.0001953,2]
[388663843,1759311044733,-910.65,0.0001953,2]
[388663844,1759311044742,-2680.62,0.0001953,2]
[388663845,1759311044751,-1572.96,0.0001953,2]
[388663846,1759311044761,-1255.05,0.0001953,2]
[388663847,1759311044770,-151.589051,0.0001953,2]
[388663848,1759311044779,-157.294397,0.0001953,2]
[388663849,1759311044789,-500.0,0.0001953,2]
[388663850,1759311044798,-500.0,0.0001953,2]
[388663851,1759311044808,-2919.15,0.0001953,2]
[388663852,1759311044817,-1034.67,0.0001953,2]
[388663853,1759311044827,-500.0,0.0001953,2]
[388663854,1759311044836,-500.0,0.0001953,2]
[388663855,1759311044845,-1034.46,0.0001953,2]
[388663856,1759311044855,-3653.43,0.0001953,2]
[388663857,1759311044865,-929.05,0.0001953,2]
[388663858,1759311044875,-1132.81,0.0001953,2]
[388663859,1759311044885,-500.0,0.0001953,2]
[388663860,1759311044894,-500.0,0.0001953,2]
[388663861,1759311044904,-856.78,0.0001953,2]
[388663862,1759311044914,-520.0,0.00019541,3]
[388663863,1759311044923,-936.39,0.00019541,2]
[388663864,1759311044932,-513.6,0.00019541,2]
[388663865,1759311044941,-500.0,0.00019541,2]
[388663866,1759311044952,-500.0,0.00019541,2]
[388663867,1759311044961,-670.11,0.00019541,2]
[388663868,1759311044970,-500.0,0.00019541,2]
[388663869,1759311044979,-1283.03,0.00019541,2]
[388663870,1759311044989,-500.0,0.00019541,2]
[388663872,1759311044998,-1111.82,0.00019541,2]
[388663874,1759311045008,-500.0,0.00019541,2]
[388663876,1759311045016,-500.0,0.00019541,2]
[388663878,1759311045026,-500.0,0.00019541,2]
[388663880,1759311045035,-500.0,0.00019541,2]
[388663881,1759311045045,-1000.0,0.00019541,2]
[388663883,1759311045055,-500.0,0.00019541,2]
[388663884,1759311045064,-465.43133117,0.00019541,2]
[388663886,1759311045073,-500.0,0.00019541,2]
[388663888,1759311045082,-462.09087653,0.00019541,2]
[388663890,1759311045091,-500.0,0.00019541,2]
[388663891,1759311045100,-500.0,0.00019541,2]
[388663893,1759311045110,-480.0,0.00019541,2]
[388663895,1759311045119,-500.0,0.00019541,2]
[388663897,1759311045128,-578.05,0.00019541,2]
[388663899,1759311045137,-500.0,0.00019541,2]
[388663901,1759311045146,-500.0,0.00019541,2]
[388663903,1759311045155,-462.96379974,0.00019541,2]
[388663905,1759311045165,-746.86,0.00019541,2]
[388663907,1759311045173,-500.0,0.00019541,2]
[388663909,1759311045182,-500.0,0.00019541,2]
[388663911,1759311045191,-500.0,0.00019541,2]
[388663913,1759311045200,-500.0,0.00019541,2]
[388663915,1759311045209,-369.33444499,0.00019541,2]
[388663917,1759311045218,-500.0,0.00019541,2]
[388663919,1759311045227,-500.0,0.00019541,2]
[388663921,1759311045236,-861.96,0.00019541,2]
[388663923,1759311045245,-500.0,0.00019541,2]
[388663925,1759311045254,-500.0,0.00019541,2]
[388663927,1759311045263,-500.0,0.00019541,2]
[388663929,1759311045274,-973.72,0.00019541,2]
[388663931,1759311045283,-647.97,0.00019541,2]
[388663933,1759311045297,-500.0,0.00019541,2]
[388663935,1759311045307,-500.0,0.00019541,2]
[388663937,1759311045316,-500.0,0.00019541,2]
[388663939,1759311045325,-262.33673221,0.00019541,2]
[388663941,1759311045334,-619.36,0.00019541,2]
[388663943,1759311045343,-500.0,0.00019541,2]
[388663945,1759311045355,-603.3,0.00019541,2]
[388663947,1759311045365,-644.00709932,0.00019541,2]
[388663949,1759311045374,-1087.58,0.00019541,2]
[388663951,1759311045383,-2927.19,0.00019541,2]
[388663953,1759311045392,-415.08703391,0.00019541,2]
[388663955,1759311045401,-588.76724094,0.00019541,2]
[388663957,1759311045411,-500.0,0.00019541,2]
[388663959,1759311045420,-404.02029042,0.00019541,2]
[388663961,1759311045430,-500.0,0.00019541,2]
[388663963,1759311045439,-500.0,0.00019541,2]
[388663965,1759311045449,-500.0,0.00019541,2]
[388663967,1759311045458,-500.0,0.00019541,2]
[388663968,1759311045468,-3460.01,0.00019541,2]
[388663970,1759311045477,-500.0,0.00019541,2]
[388663972,1759311045485,-500.0,0.00019541,2]
[388663974,1759311045494,-846.03,0.00019541,2]
[388663976,1759311045503,-518.11,0.00019541,2]
[388663978,1759311045512,-1290.06,0.00019541,2]
[388663980,1759311045521,-500.0,0.00019541,2]
[388663982,1759311045530,-500.0,0.00019541,2]
[388663984,1759311045542,-669.89,0.00019541,2]
[388663986,1759311045551,-500.0,0.00019541,2]
[388663988,1759311045560,-500.0,0.00019541,2]
[388663990,1759311045570,-500.0,0.00019541,2]
[388663992,1759311045579,-1294.55,0.00019541,2]
[388663994,1759311045589,-604.38694824,0.00019566,2]
[388663996,1759311045598,-291.0232396,0.00019573,2]
[388663998,1759311045607,-500.0,0.00019573,2]
[388664000,1759311045616,-500.0,0.00019573,2]
[388664002,1759311045625,-200.01019669,0.00019573,2]
[388664004,1759311045634,-504.16551314,0.00019573,2]
[388664006,1759311045643,-150.40881481,0.00019573,2]
[388664008,1759311045651,-256.69308645,0.00019573,2]
[388664010,1759311045661,-500.0,0.00019573,2]
[388664012,1759311045670,-500.0,0.00019573,2]
[388664014,1759311045679,-500.0,0.00019573,2]
[388664016,1759311045689,-500.0,0.00019573,2]
[388664018,1759311045698,-500.0,0.00019573,2]
[388664020,1759311045707,-500.0,0.00019573,2]
[388664022,1759311045718,-500.0,0.00019573,2]
[388664023,1759311045727,-500.0,0.00019573,2]
[388664026,1759311045737,-502.60943045,0.00019573,2]
[388664028,1759311045747,-500.0,0.00019573,2]
[388664029,1759311045756,-500.73488065,0.00019573,2]
[388664031,1759311045765,-500.0,0.00019573,2]
[388664034,1759311045775,-500.0,0.00019573,2]
[388664037,1759311045784,-500.0,0.00019573,2]
[388664040,1759311045795,-500.0,0.00019573,2]
[388664043,1759311045804,-500.0,0.00019573,2]
[388664046,1759311045813,-500.0,0.00019573,2]
[388664049,1759311045822,-500.0,0.00019573,2]
[388664053,1759311045831,-500.0,0.00019573,2]
[388664057,1759311045840,-200.01019671,0.00019573,2]
[388664061,1759311045849,-501.65264347,0.00019573,2]
[388664064,1759311045858,-532.04413986,0.00019573,2]
[388664068,1759311045867,-500.0,0.00019573,2]
[388664071,1759311045878,-502.66302311,0.00019573,2]
[388664075,1759311045887,-500.0,0.00019573,2]
[388664079,1759311045896,-200.01172182,0.00019573,2]
[388664082,1759311045905,-200.01019669,0.00019573,2]
[388664085,1759311045914,-200.0117218,0.00019573,2]
[388664088,1759311045923,-500.0,0.00019573,2]
[388664091,1759311045932,-500.0,0.00019573,2]
[388664095,1759311045942,-500.0,0.00019573,2]
[388664098,1759311045950,-500.0,0.00019573,2]
[388664101,1759311045959,-500.0,0.00019573,2]
[388664104,1759311045968,-500.0,0.00019573,2]
[388664107,1759311045978,-506.20201655,0.00019573,2]
[388664110,1759311045987,-500.0,0.00019573,2]
[388664113,1759311045996,-500.0,0.00019573,2]
[388664116,1759311046005,-500.0,0.00019573,2]
[388664119,1759311046015,-500.0,0.00019573,2]
[388664122,1759311046024,-158.96308781,0.00019573,2]
[388664125,1759311046033,-500.0,0.00019573,2]
[388664128,1759311046044,-259.13971485,0.00019584,2]
[388664131,1759311046053,-245.0,0.00019584,2]
[388664134,1759311046063,-500.0,0.00019584,2]
[388664137,1759311046072,-151.0,0.00019584,2]
[388664148,1759311046118,-151.0,0.00019584,2]
[388664151,1759311046127,-591.0,0.00019584,2]
[388664154,1759311046136,-151.0,0.00019584,2]
[388664157,1759311046146,-151.0,0.000196,2]
[388664160,1759311046154,-151.0,0.000197,2]
[388664163,1759311046163,-151.0,0.000197,2]
[388664165,1759311046173,-151.0,0.000197,2]
[388664167,1759311046181,-151.0,0.000197,2]
[388664169,1759311046190,-604.38694824,0.00019703,2]
[388664171,1759311046199,-10000.0,0.00019704,2]
[388664173,1759311046209,-10088.15557,0.00019716,2]
[388664177,1759311046237,-500.0,0.00019255,2]
[388664178,1759311046246,-7748.85304119,0.00019716,2]